fUST/lending_fUST_20260128
["ID","MTS","AMOUNT","RATE_DAILY","PERIOD"]
[403781107,1769537439603,-3485.41,0.00023,15]
[403781110,1769537439612,-6008.07,0.00023,15]
[403781112,1769537439621,-1320.37,0.00023,15]
[403781115,1769537439630,-167.0,0.00023,7]
[403781117,1769537439639,-450.0,0.00023014,2]
[403781121,1769537439649,-250.0,0.00023014,2]
[403781123,1769537439658,-2000.0,0.0002304,7]
[403781126,1769537439668,-504.02,0.000231,7]
[403781128,1769537439677,-1000.0,0.000233,2]
[403781129,1769537439686,-671.42,0.000233,7]
[403781130,1769537439695,-229.43752364,0.000233,2]
[403781131,1769537439705,-419.3303856,0.00023315,2]
[403781132,1769537439714,-151.0,0.000234,6]
[403781133,1769537439723,-500.0,0.0002351,7]
[403781134,1769537439733,-600.0,0.00023562,2]
[403781135,1769537439743,-211.60415858,0.00023562,2]
[403781136,1769537439752,-2633.3546125,0.00023606,2]
[403781137,1769537439761,-808.057685,0.0002367,30]
[403781138,1769537439770,-7471.43,0.000237,3]
[403781139,1769537439779,-1000.0,0.00023763,10]
[403781140,1769537439789,-1000.0,0.00023763,10]
[403781141,1769537439798,-151.0,0.000238,5]
[403781142,1769537439808,-2000.0,0.00023813,7]
[403781143,1769537439817,-3416.6206864,0.00023933,2]
[403781144,1769537439826,-703.80876704,0.00023954,2]
[403781145,1769537439836,-165.13470443,0.00023999,2]
[403781146,1769537439845,-30996.00863917,0.00024,7]
[403781147,1769537439855,-813.19,0.00024,14]
[403781148,1769537439864,-1000.0,0.00024,2]
[403781149,1769537439874,-1738.09452943,0.00024,2]
[403781150,1769537439883,-466.2535478,0.00024,2]
[403781151,1769537439892,-635.28152745,0.00024,3]
[403781152,1769537439901,-99886.67887548,0.00024,30]
[403781153,1769537439911,-509.0,0.00024,7]
[403781154,1769537439920,-151.0,0.00024,2]
[403781155,1769537439930,-750.0,0.0002411,2]
[403781156,1769537439939,-167.0,0.00024164,7]
[403781157,1769537439948,-151.0,0.000242,6]
[403781158,1769537439958,-587.5808364,0.00024234,2]
[403781160,1769537439967,-285.97,0.000243,7]
[403781161,1769537439976,-179.0,0.00024367,2]
[403781163,1769537439986,-509.0,0.00024424,7]
[403781165,1769537439995,-1126.0,0.000245,5]
[403781168,1769537440005,-151.0,0.000245,9]
[403781169,1769537440014,-762.3511209,0.0002457,2]
[403781172,1769537440024,-2000.0,0.00024587,7]
[403781173,1769537440033,-185.3812353,0.0002462,2]
[403781175,1769537440042,-1219.3595048,0.0002462,2]
[403781178,1769537440051,-345.144233,0.0002464,30]
[403781180,1769537440060,-3977.258142,0.00024647,30]
[403781182,1769537440069,-116169.52687477,0.0002465,2]
[403781183,1769537440078,-514.55643597,0.0002465,2]
[403781185,1769537440087,-40779.56040581,0.0002465,2]
[403781187,1769537440097,-151.0,0.0002465,2]
[403781189,1769537440106,-151.0,0.0002465,2]
[403781191,1769537440115,-151.0,0.0002465,2]
[403781193,1769537440125,-2095.186217,0.0002465,2]
[403781195,1769537440134,-2095.186217,0.0002465,2]
[403781197,1769537440143,-2095.186217,0.0002465,2]
[403781199,1769537440152,-2095.186217,0.0002465,2]
[403781201,1769537440162,-159.93933,0.0002465,2]
[403781203,1769537440171,-159.93933,0.0002465,2]
[403781205,1769537440180,-159.93933,0.0002465,2]
[403781207,1769537440191,-159.93933,0.0002465,2]
[403781209,1769537440201,-151.0,0.0002465,2]
[403781211,1769537440211,-4262.748023,0.0002465,2]
[403781213,1769537440220,-151.0,0.0002465,2]
[403781215,1769537440230,-4262.748023,0.0002465,2]
[403781217,1769537440239,-4262.748023,0.0002465,2]
[403781220,1769537440250,-4262.748023,0.0002465,2]
[403781221,1769537440260,-202.077631,0.0002465,2]
[403781224,1769537440270,-202.077631,0.0002465,2]
[403781225,1769537440279,-202.077631,0.0002465,2]
[403781228,1769537440289,-202.077631,0.0002465,2]
[403781230,1769537440298,-150.0,0.00024658,2]
[403781232,1769537440308,-900.0,0.00024658,2]
[403781234,1769537440317,-380.0,0.00024658,2]
[403781236,1769537440326,-200.0,0.00024658,2]
[403781238,1769537440336,-16820.15,0.000247,2]
[403781240,1769537440345,-671.42,0.000247,7]
[403781242,1769537440354,-276.802729,0.000247,7]
[403781244,1769537440364,-151.0,0.000247,7]
[403781246,1769537440372,-151.0,0.000247,7]
[403781248,1769537440381,-151.0,0.000247,7]
[403781250,1769537440390,-29885.72,0.000247,3]
[403781252,1769537440399,-16844.7511732,0.00024774,2]
[403781254,1769537440409,-2232.48,0.000248,30]
[403781256,1769537440419,-5000.0,0.000248,30]
[403781258,1769537440428,-5000.0,0.000248,30]
[403781260,1769537440438,-24839.8177148,0.000248,2]
[403781262,1769537440448,-151.0,0.000248,7]
[403781264,1769537440458,-245.030508,0.00024806,30]
[403781266,1769537440471,-209.074,0.000249,2]
[403781268,1769537440481,-250.0,0.000249,2]
[403781270,1769537440490,-250.0,0.000249,2]
[403781272,1769537440500,-250.0,0.000249,2]
[403781275,1769537440511,-250.0,0.000249,2]
[403781277,1769537440521,-250.0,0.000249,2]
[403781278,1769537440530,-250.0,0.000249,2]
[403781281,1769537440542,-250.0,0.000249,2]
[403781282,1769537440551,-250.0,0.000249,2]
[403781283,1769537440561,-217.6,0.000249,2]
[403781284,1769537440570,-151.0,0.000249,7]
[403781285,1769537440580,-151.0,0.000249,7]
[403781286,1769537440589,-151.0,0.000249,7]
[403781287,1769537440599,-151.0,0.000249,7]
[403781288,1769537440609,-151.0,0.000249,7]
[403781289,1769537440619,-151.0,0.000249,7]
[403781290,1769537440629,-2095.186217,0.000249,7]
[403781291,1769537440639,-2095.186217,0.000249,7]
[403781292,1769537440649,-2095.186217,0.000249,7]
[403781293,1769537440659,-2095.186217,0.000249,7]
[403781294,1769537440669,-159.93933,0.000249,7]
[403781295,1769537440679,-159.93933,0.000249,7]
[403781296,1769537440688,-159.93933,0.000249,7]
[403781297,1769537440699,-159.93933,0.000249,7]
[403781298,1769537440709,-151.0,0.000249,7]
[403781299,1769537440719,-642112.958155,0.000249,2]
[403781300,1769537440727,-4262.748023,0.000249,7]
[403781301,1769537440737,-151.0,0.000249,7]
[403781302,1769537440746,-4262.748023,0.000249,7]
[403781303,1769537440755,-4262.748023,0.000249,7]
[403781304,1769537440765,-4262.748023,0.000249,7]
[403781305,1769537440774,-202.077631,0.000249,7]
[403781306,1769537440785,-202.077631,0.000249,7]
[403781307,1769537440794,-202.077631,0.000249,7]
[403781308,1769537440803,-202.077631,0.000249,7]
[403781309,1769537440813,-151.0,0.000249,7]
[403781310,1769537440823,-1215.053887,0.0002498,5]
[403781311,1769537440833,-10364.0,0.00025,2]
[403781312,1769537440842,-150.0,0.00025,2]
[403781313,1769537440852,-500.0,0.00025,2]
[403781314,1769537440862,-1000.0,0.00025,2]
[403781315,1769537440871,-461.38437415,0.00025,2]
[403781316,1769537440881,-36201.99362836,0.00025,15]
[403781317,1769537440890,-201.0,0.00025,17]
[403781318,1769537440900,-102360.12398222,0.00025,8]
[403781319,1769537440909,-1265.0,0.00025,10]
[403781320,1769537440920,-160.0,0.00025,30]
[403781321,1769537440930,-1087.02558512,0.00025,2]
[403781322,1769537440940,-2678.10286105,0.00025,2]
[403781323,1769537440950,-160.15367603,0.00025,2]
[403781324,1769537440960,-827.13394028,0.00025,30]
[403781325,1769537440970,-1994.89075382,0.00025,30]
[403781326,1769537440981,-160.0,0.00025,14]
[403781327,1769537440991,-27809.35186258,0.00025,2]
[403781328,1769537441001,-300.0,0.00025,30]
[403781329,1769537441011,-1202.699897,0.00025,30]
[403781330,1769537441021,-167.12968439,0.00025,7]
[403781331,1769537441030,-761.06932795,0.00025,2]
[403781332,1769537441040,-1041.66666667,0.00025,30]
[403781333,1769537441049,-1000.0,0.00025,5]
[403781334,1769537441059,-293.59383327,0.00025,30]
[403781335,1769537441068,-6971.64893287,0.00025047,2]
[403781336,1769537441078,-581.48826565,0.000252,5]
[403781337,1769537441087,-250.0,0.00025205,2]
[403781338,1769537441096,-1191.50613395,0.00025205,2]
[403781339,1769537441106,-509.0,0.00025358,7]
[403781340,1769537441116,-2000.0,0.0002536,7]
[403781341,1769537441126,-167.0,0.00025373,7]
[403781342,1769537441135,-900.0,0.00025469,3]
[403781343,1769537441145,-1000.0,0.000255,2]
[403781344,1769537441154,-237.610401,0.0002568,30]
[403781345,1769537441165,-350.0,0.00025753,2]
[403781346,1769537441174,-671.42,0.000258,7]
[403781347,1769537441184,-285.97,0.000258,7]
[403781348,1769537441194,-204.22,0.00025844,2]
[403781349,1769537441204,-1926.617978,0.00025875,30]
[403781350,1769537441213,-16820.15,0.000259,2]
[403781351,1769537441223,-764.71529496,0.00025954,2]
[403781352,1769537441232,-203.21,0.00025999,14]
[403781353,1769537441242,-20733.84848272,0.00026,10]
[403781354,1769537441251,-530.41268423,0.00026,2]
[403781355,1769537441260,-19900.0,0.00026,2]
[403781356,1769537441269,-1000.0,0.00026,2]
[403781357,1769537441279,-161.0,0.00026,5]
[403781358,1769537441288,-575.55484943,0.00026,10]
[403781359,1769537441298,-162.0,0.00026027,19]
[403781360,1769537441307,-817.944541,0.00026125,30]
[403781362,1769537441316,-2000.0,0.00026133,7]
[403781363,1769537441326,-1000.0,0.00026139,30]
[403781364,1769537441335,-1000.0,0.00026139,30]
[403781365,1769537441345,-579.0,0.00026139,30]
[403781366,1769537441353,-194.85144519,0.0002616,2]
[403781367,1769537441362,-603.8665126,0.00026275,2]
[403781368,1769537441372,-603.8665126,0.00026275,2]
[403781369,1769537441382,-603.8665126,0.00026275,2]
[403781370,1769537441392,-373.914001,0.00026278,2]
[403781371,1769537441402,-234.3515731,0.00026278,2]
[403781372,1769537441411,-176.96,0.00026281,30]
[403781373,1769537441420,-450.0,0.00026301,2]
[403781374,1769537441430,-3754.5091478,0.00026404,9]
[403781375,1769537441440,-58358.06024641,0.000265,10]
[403781376,1769537441450,-513.0,0.00026625,7]
[403781377,1769537441460,-7471.43,0.000267,3]
[403781378,1769537441469,-400.60820661,0.00026849,2]
[403781379,1769537441482,-671.42,0.000269,7]
[403781380,1769537441491,-1025.71842721,0.000269,2]
[403781381,1769537441500,-2000.0,0.00026907,7]
[403781382,1769537441510,-1000.0,0.00027,2]
[403781383,1769537441520,-161.71517852,0.00027,30]
[403781384,1769537441529,-16820.15,0.000271,2]
[403781385,1769537441539,-936.3979201,0.000271,2]
[403781386,1769537441550,-603.8665126,0.000271,2]
[403781387,1769537441559,-603.8665126,0.000271,2]
[403781388,1769537441569,-603.8665126,0.000271,2]
[403781389,1769537441579,-179.0,0.00027367,2]
[403781390,1769537441588,-394.73162789,0.0002739,7]
[403781391,1769537441598,-150.0,0.0002739,2]
[403781392,1769537441607,-499.999999,0.0002739,2]
[403781393,1769537441616,-224.45198599,0.00027397,2]
[403781394,1769537441626,-500.0,0.00027397,5]
[403781395,1769537441635,-157.67754405,0.00027397,5]
[403781396,1769537441644,-150.0,0.00027397,5]
[403781397,1769537441653,-516.40836323,0.00027397,5]
[403781398,1769537441663,-46000.45517495,0.000275,2]
[403781399,1769537441673,-285.97,0.000275,7]
[403781400,1769537441683,-151.782866,0.000275,7]
[403781401,1769537441692,-151.0,0.000275,7]
[403781402,1769537441703,-151.0,0.000275,7]
[403781404,1769537441713,-170.482931,0.000275,7]
[403781406,1769537441722,-151.0,0.000275,7]
[403781407,1769537441732,-151.0,0.000275,7]
[403781409,1769537441742,-2095.186217,0.000275,7]
[403781411,1769537441752,-2095.186217,0.000275,7]
[403781412,1769537441762,-2095.186217,0.000275,7]
[403781414,1769537441771,-2095.186217,0.000275,7]
[403781415,1769537441780,-159.93933,0.000275,7]
[403781416,1769537441790,-159.93933,0.000275,7]
[403781418,1769537441799,-159.93933,0.000275,7]
[403781419,1769537441809,-159.93933,0.000275,7]
[403781420,1769537441818,-151.0,0.000275,7]
[403781421,1769537441828,-4262.748023,0.000275,7]
[403781422,1769537441838,-151.0,0.000275,7]
[403781423,1769537441847,-4262.748023,0.000275,7]
[403781424,1769537441857,-4262.748023,0.000275,7]
[403781425,1769537441866,-4262.748023,0.000275,7]
[403781426,1769537441875,-202.077631,0.000275,7]
[403781427,1769537441885,-202.077631,0.000275,7]
[403781428,1769537441895,-202.077631,0.000275,7]
[403781429,1769537441904,-202.077631,0.000275,7]
[403781430,1769537441914,-151.0,0.000275,7]
[403781431,1769537441924,-2000.0,0.0002768,7]
[403781432,1769537441933,-1000.0,0.00027777,5]
[403781433,1769537441943,-10000.0,0.0002787,7]
[403781434,1769537441958,-671.42,0.000279,7]
[403781435,1769537441967,-1021.0,0.000279,2]
[403781436,1769537441976,-167.0,0.0002791,14]
[403781437,1769537441985,-1315.45,0.00027945,30]
[403781438,1769537441995,-1000.0,0.00027945,5]
[403781439,1769537442004,-250.0,0.00027945,5]
[403781440,1769537442014,-825.62182287,0.00027954,2]
[403781441,1769537442024,-15333.96550945,0.00028,2]
[403781442,1769537442033,-2767.750963,0.00028,2]
[403781443,1769537442043,-1500.0,0.00028,2]
[403781444,1769537442052,-378.0,0.00028,8]
[403781445,1769537442062,-16820.15,0.000282,2]
[403781446,1769537442071,-6971.64893287,0.0002831,2]
[403781447,1769537442080,-509.0,0.000284,14]
[403781448,1769537442090,-2000.0,0.00028453,7]
[403781449,1769537442099,-1315.45,0.00028493,31]
[403781450,1769537442109,-1351.13312904,0.00028493,5]
[403781451,1769537442118,-350.0,0.00028493,5]
[403781452,1769537442128,-299117.55067327,0.000285,7]
[403781453,1769537442137,-151.0,0.000285,7]
[403781454,1769537442146,-153.733115,0.000285,7]
[403781455,1769537442156,-151.0,0.000285,7]
[403781456,1769537442165,-2095.186217,0.000285,7]
[403781457,1769537442175,-2095.186217,0.000285,7]
[403781458,1769537442184,-2095.186217,0.000285,7]
[403781459,1769537442193,-2095.186217,0.000285,7]
[403781460,1769537442205,-159.93933,0.000285,7]
[403781461,1769537442214,-159.93933,0.000285,7]
[403781462,1769537442223,-159.93933,0.000285,7]
[403781463,1769537442232,-159.93933,0.000285,7]
[403781464,1769537442242,-245.391215,0.000285,7]
[403781465,1769537442251,-4262.748023,0.000285,7]
[403781466,1769537442261,-287.078315,0.000285,7]
[403781467,1769537442270,-4262.748023,0.000285,7]
[403781468,1769537442279,-4262.748023,0.000285,7]
[403781469,1769537442289,-4262.748023,0.000285,7]
[403781470,1769537442298,-1500.0,0.000285,2]
[403781471,1769537442307,-202.077631,0.000285,7]
[403781472,1769537442317,-202.077631,0.000285,7]
[403781473,1769537442326,-202.077631,0.000285,7]
[403781474,1769537442336,-202.077631,0.000285,7]
[403781475,1769537442346,-240.503925,0.000285,7]
[403781476,1769537442355,-353.91,0.0002867,30]
[403781477,1769537442365,-1000.0,0.00028753,30]
[403781478,1769537442374,-1000.0,0.00028753,30]
[403781479,1769537442383,-1000.0,0.00028753,30]
[403781480,1769537442394,-19160.71537268,0.0002876,2]
[403781481,1769537442403,-4000.0,0.0002876,5]
[403781482,1769537442413,-190.842462,0.00028767,60]
[403781483,1769537442422,-172.85980282,0.000288,7]
[403781484,1769537442432,-10000.0,0.0002887,7]
[403781485,1769537442442,-1021.0,0.000289,2]
[403781486,1769537442453,-500.0,0.00028927,7]
[403781487,1769537442466,-891.46633534,0.00029,2]
[403781488,1769537442479,-2418.67921183,0.00029,10]
[403781489,1769537442489,-1500.0,0.00029,2]
[403781490,1769537442499,-265.750259,0.00029,2]
[403781491,1769537442511,-10000.0,0.00029,2]
[403781492,1769537442520,-1000.0,0.00029,5]
[403781493,1769537442531,-1500.0,0.00029,2]
[403781494,1769537442542,-1315.45,0.00029041,32]
[403781495,1769537442552,-450.0,0.00029041,5]
[403781496,1769537442562,-671.42,0.000291,7]
[403781498,1769537442573,-285.97,0.000292,7]
[403781500,1769537442582,-1050.72736745,0.00029227,7]
[403781502,1769537442592,-590202.65304454,0.000294,20]
[403781505,1769537442608,-16094.85708563,0.000294,20]
[403781525,1769537442816,-266.59409234,0.00020178,7]
[403781542,1769537446139,-500.0,0.00013698,2]
[403781543,1769537446150,-500.0,0.00013698,2]
[403781544,1769537446160,-500.0,0.00013698,2]
[403781545,1769537446172,-281.76692147,0.00013698,2]
[403781546,1769537453998,-353.44,0.00011571,2]
[403781547,1769537506593,300.0,0.0001099,2]
[403781549,1769537532176,203.19270119,0.000284,120]
[403781550,1769537532197,296.80729881,0.000284,120]
[403781551,1769537532298,348.95,9.855e-05,2]
[403781552,1769537532714,697.9,0.00010751,2]
[403781554,1769537546620,-1046.85,0.00011647,2]
[403781555,1769537611935,150.0,0.00030137,120]
[403781556,1769537623618,329.06,9.851e-05,2]
[403781557,1769537624487,658.12,0.00010747,2]
[403781558,1769537639248,-987.17,0.00011643,2]
[403781559,1769537706804,303.93,8.069e-05,2]
[403781560,1769537707198,607.86,8.803e-05,2]
[403781561,1769537707636,911.79,9.537e-05,2]
[403781562,1769537708292,1215.72,0.0001027,2]
[403781563,1769537708755,1519.65,0.00011004,2]
[403781564,1769537716263,-1823.58,0.00011737,2]
[403781569,1769537788552,222.7,8.253e-05,2]
[403781570,1769537788990,445.4,9.004e-05,2]
[403781571,1769537789420,668.09,9.754e-05,2]
[403781572,1769537790340,890.79,0.00010504,2]
[403781573,1769537790789,1113.49,0.00011255,2]
[403781575,1769537846717,1000.0,0.0003501,120]
[403781576,1769537846973,1000.0,0.0003501,120]
[403781577,1769537847224,1000.0,0.0003501,120]
[403781578,1769537847467,1087.06679915,0.0003501,120]
[403781579,1769537871236,180.18,8.067e-05,2]
[403781580,1769537871643,360.37,8.8e-05,2]
[403781581,1769537872070,540.55,9.534e-05,2]
[403781582,1769537872490,720.73,0.00010267,2]
[403781583,1769537872906,900.91,0.00011,2]
[403781584,1769537887175,-1081.1,0.00011734,2]
[403781585,1769537933401,-218.66942558,0.00011822,2]
[403781586,1769537951910,150.0,9.798e-05,2]
[403781587,1769537952315,264.05,0.00010689,2]
[403781588,1769537964387,-396.07,0.0001158,2]
[403781589,1769538032490,150.0,9.332e-05,2]
[403781590,1769538032916,243.43,0.0001018,2]
[403781591,1769538033356,365.14,0.00011029,2]
[403781593,1769538105342,-156.384,0.00011617,2]
[403781594,1769538116809,150.0,9.541e-05,2]
[403781595,1769538117256,224.12,0.00010408,2]
[403781596,1769538117657,336.18,0.00011276,2]
[403781597,1769538197379,150.0,9.855e-05,2]
[403781598,1769538197808,206.04,0.0001075,2]
[403781599,1769538199147,-309.06,0.00011646,2]
[403781600,1769538257117,53.19270119,0.00030137,120]
[403781601,1769538257137,96.80729881,0.00030137,120]
[403781602,1769538280236,150.0,8.225e-05,2]
[403781603,1769538280634,189.11,8.973e-05,2]
[403781604,1769538281046,283.66,9.721e-05,2]
[403781605,1769538281483,378.22,0.00010469,2]
[403781606,1769538281898,472.77,0.00011217,2]
[403781607,1769538304515,170.305539,0.00010968,2]
[403781614,1769538359191,150.0,9.761e-05,2]
[403781615,1769538359737,151.6,0.00010648,2]
[403781616,1769538360040,227.39,0.00011536,2]
[403781618,1769538439597,150.0,9.743e-05,2]
[403781619,1769538439912,150.0,0.00010629,2]
[403781620,1769538440871,207.19,0.00011515,2]
[403781622,1769538508668,403.19270119,0.0003,120]
[403781623,1769538508690,58.20141463,0.0003,120]
[403781624,1769538517463,150.0,9.748e-05,2]
[403781625,1769538517918,150.0,0.00010634,2]
[403781626,1769538518330,187.83,0.0001152,2]
[403781628,1769538534617,990.04,0.00011584,2]
[403781671,1769538632088,-500.0,0.00011852,2]
[403781673,1769538632099,-152.22592855,0.00011852,2]
[403781674,1769538632108,-340.62337061,0.00011852,2]
[403781676,1769538632117,-500.0,0.00011852,2]
[403781678,1769538632127,-500.0,0.00011852,2]
[403781680,1769538632136,-435.2444716,0.00011852,2]
[403781681,1769538632145,-500.0,0.00011852,2]
[403781683,1769538632155,-229.69340324,0.00011852,2]
[403781685,1769538632164,-174.84176396,0.00011852,2]
[403781687,1769538632173,-327.77354388,0.00011852,2]
[403781688,1769538632182,-587.0,0.00011852,2]
[403781690,1769538632192,-41603.83184416,0.00011853,2]
[403781692,1769538632201,-188.34109371,0.00011853,2]
[403781693,1769538632210,-487.24916333,0.00011853,2]
[403781695,1769538632221,-191.07441433,0.00011853,2]
[403781697,1769538632230,-300.0,0.0001209,2]
[403781698,1769538632239,-300.0,0.0001209,2]
[403781700,1769538632248,-300.0,0.0001209,2]
[403781701,1769538632257,-300.0,0.0001209,2]
[403781702,1769538632266,-300.0,0.0001209,2]
[403781704,1769538632276,-300.0,0.0001209,2]
[403781705,1769538632285,-300.0,0.0001209,2]
[403781707,1769538632294,-300.0,0.0001209,2]
[403781708,1769538632304,-300.0,0.0001209,2]
[403781710,1769538632312,-300.0,0.0001209,2]
[403781711,1769538632322,-300.0,0.0001209,2]
[403781713,1769538632332,-300.0,0.0001209,2]
[403781714,1769538632341,-300.0,0.0001209,2]
[403781716,1769538632350,-300.0,0.0001209,2]
[403781717,1769538632359,-300.0,0.0001209,2]
[403781719,1769538632368,-600.0,0.0001209,2]
[403781720,1769538632377,-5472.0314059,0.0001218,2]
[403781722,1769538632385,-500.0,0.00013273,2]
[403781723,1769538632395,-500.0,0.00013273,2]
[403781724,1769538632404,-502.68815338,0.00013273,2]
[403781725,1769538632585,-619.57314068,0.00013273,2]
[403781726,1769538632595,-500.0,0.00013273,2]
[403781727,1769538632603,-500.0,0.00013273,2]
[403781728,1769538632611,-500.0,0.00013273,2]
[403781729,1769538632619,-500.0,0.00013273,2]
[403781730,1769538632628,-500.0,0.00013273,2]
[403781731,1769538632636,-500.0,0.00013273,2]
[403781732,1769538632645,-500.0,0.00013273,2]
[403781733,1769538632655,-500.0,0.00013273,2]
[403781734,1769538632664,-500.0,0.00013273,2]
[403781735,1769538632673,-485.19363302,0.00013273,2]
[403781768,1769538638153,-14.80636698,0.00013273,2]
[403781770,1769538638164,-500.0,0.00013273,2]
[403781772,1769538638174,-500.0,0.00013273,2]
[403781774,1769538638185,-500.0,0.00013273,2]
[403781776,1769538638197,-500.0,0.00013273,2]
[403781778,1769538638207,-500.0,0.00013273,2]
[403781780,1769538638216,-500.0,0.00013273,2]
[403781782,1769538638227,-500.0,0.00013273,2]
[403781783,1769538638237,-500.0,0.00013273,2]
[403781785,1769538638247,-500.0,0.00013273,2]
[403781787,1769538638257,-500.0,0.00013273,2]
[403781790,1769538638267,-500.0,0.00013299,2]
[403781792,1769538638277,-720.0,0.00013299,2]
[403781794,1769538638287,-541.43191332,0.00013573,2]
[403781795,1769538638298,-218.23307853,0.00013698,2]
[403781798,1769538638308,-500.0,0.00013698,2]
[403781799,1769538638319,-500.0,0.00013698,2]
[403781801,1769538638328,-500.0,0.00013698,2]
[403781804,1769538638338,-500.0,0.00013698,2]
[403781806,1769538638349,-500.0,0.00013698,2]
[403781808,1769538638362,-618.7672116,0.00013698,2]
[403781810,1769538638372,-500.0,0.00013698,2]
[403781812,1769538638382,-500.0,0.00013698,2]
[403781814,1769538638392,-500.0,0.00013698,2]
[403781816,1769538638401,-500.0,0.00013698,2]
[403781818,1769538638412,-500.0,0.00013698,2]
[403781820,1769538638421,-500.0,0.00013698,2]
[403781821,1769538638431,-500.0,0.00013698,2]
[403781823,1769538638442,-500.0,0.00013698,2]
[403781826,1769538638452,-500.0,0.00013698,2]
[403781828,1769538638462,-500.0,0.00013698,2]
[403781830,1769538638472,-500.0,0.00013698,2]
[403781832,1769538638482,-527.43989334,0.00013698,2]
[403781834,1769538638492,-500.0,0.00013698,2]
[403781835,1769538638501,-1000.0,0.00013698,2]
[403781838,1769538638512,-580.78992406,0.00013698,2]
[403781840,1769538638522,-499.999999,0.00013698,2]
[403781842,1769538638533,-515.45788341,0.00013698,2]
[403781843,1769538638542,-500.0,0.00013699,2]
[403781845,1769538638553,-500.0,0.00013699,2]
[403781847,1769538638563,-160.67610577,0.00013699,2]
[403781849,1769538638573,-500.0,0.00013699,2]
[403781851,1769538638582,-504.37903776,0.00013699,2]
[403781853,1769538638593,-500.0,0.00013699,2]
[403781855,1769538638601,-500.0,0.00013699,2]
[403781857,1769538638611,-500.81049976,0.00013699,2]
[403781859,1769538638621,-567.35253141,0.00013699,2]
[403781861,1769538638631,-500.0,0.00013699,2]
[403781863,1769538638641,-500.69178235,0.00013699,2]
[403781865,1769538638650,-500.0,0.00013699,2]
[403781867,1769538638660,-500.0,0.00013699,2]
[403781869,1769538638671,-500.0,0.00013699,2]
[403781871,1769538638680,-500.74038109,0.00013699,2]
[403781873,1769538638689,-500.2256561,0.00013699,2]
[403781875,1769538638702,-500.6948387,0.00013699,2]
[403781877,1769538638711,-507.15850376,0.00013699,2]
[403781879,1769538638721,-220.8942339,0.00013699,2]
[403781881,1769538638731,-160.25817065,0.00013699,2]
[403781883,1769538638741,-500.0,0.00013699,2]
[403781885,1769538638751,-500.0,0.00013699,2]
[403781887,1769538638761,-500.0,0.00013699,2]
[403781889,1769538638772,-500.2910062,0.00013699,2]
[403781891,1769538638782,-158.80345848,0.00013699,2]
[403781893,1769538638792,-500.51551222,0.00013699,2]
[403781894,1769538638802,-500.0,0.00013699,2]
[403781896,1769538638812,-500.0,0.00013699,2]
[403781899,1769538638822,-500.0,0.00013699,2]
[403781901,1769538638833,-158.38045043,0.00013699,2]
[403781902,1769538638849,-500.0,0.00013699,2]
[403781904,1769538638858,-500.0,0.00013699,2]
[403781906,1769538638868,-500.0,0.00013699,2]